fUST/lending_fUST_20241012
["ID","MTS","AMOUNT","RATE_DAILY","PERIOD"]
[340150680,1728687042258,-31937.79,0.00060821,18]
[340150681,1728687042270,-150.112235,0.00061,11]
[340150682,1728687042281,-31937.95000001,0.00061095,18]
[340150683,1728687042299,-23503.01354858,0.00061382,120]
[340150684,1728687042311,-1345.23832114,0.00061655,15]
[340150685,1728687042323,-163.443487,0.00061969,2]
[340150686,1728687042336,-150.112233,0.00062,11]
[340150687,1728687042347,-150.0,0.00062161,120]
[340150688,1728687042358,-1219.0,0.00062161,120]
[340150689,1728687042371,-4955.86306504,0.0006222,28]
[340150690,1728687042383,-154.21873364,0.00062312,120]
[340150691,1728687042395,-2000.0,0.00063,120]
[340150692,1728687042407,-2000.0,0.00063,120]
[340150693,1728687042419,-2000.0,0.00063,120]
[340150694,1728687042430,-2000.0,0.00063,120]
[340150695,1728687042442,-150.112233,0.00063,15]
[340150696,1728687042454,-6498.96189916,0.00063317,2]
[340150697,1728687042466,-6498.96189916,0.00063576,2]
[340150698,1728687042477,-2000.0,0.000637,120]
[340150699,1728687042489,-650.16,0.000637,30]
[340150700,1728687042501,-6498.96189916,0.00063848,2]
[340150701,1728687042512,-2000.0,0.000639,120]
[340150702,1728687042524,-1511.86873788,0.000639,120]
[340150703,1728687042535,-150.0,0.00063981,2]
[340150704,1728687042546,-63077.91501701,0.0006399,63]
[340150705,1728687042557,-235905.91013901,0.0006399,120]
[340150706,1728687042566,-160.0,0.00063999,90]
[340150708,1728687042577,-160.75554345,0.00063999,90]
[340150709,1728687042589,-171479.55702776,0.00064,120]
[340150735,1728687043429,-98.37328468,0.00038542,2]
[340150736,1728687043967,-151.62671532,0.00038542,2]
[340150737,1728687043978,-250.0,0.00038647,2]
[340150738,1728687043988,-250.0,0.00038753,2]
[340150739,1728687044097,-250.0,0.00038859,2]
[340150740,1728687044108,-250.0,0.00038964,2]
[340150741,1728687044117,-250.0,0.0003907,2]
[340150742,1728687044127,-250.0,0.00039176,2]
[340150743,1728687044138,-250.0,0.00039281,2]
[340150744,1728687044147,-250.0,0.00039387,2]
[340150745,1728687044156,-250.0,0.00039493,2]
[340150746,1728687044166,-250.0,0.00039599,2]
[340150747,1728687044176,-7785.35125353,0.00064,120]
[340150754,1728687046345,-250.0,0.00039704,2]
[340150755,1728687046355,-250.0,0.0003981,2]
[340150756,1728687046366,-250.0,0.00039916,2]
[340150757,1728687046376,-250.0,0.00040021,2]
[340150758,1728687046386,-250.0,0.00040127,2]
[340150759,1728687046396,-250.0,0.00040233,2]
[340150760,1728687046406,-250.0,0.00040338,2]
[340150761,1728687046417,-250.0,0.00040444,2]
[340150762,1728687046427,-250.0,0.0004055,2]
[340150763,1728687046437,-4356.06805276,0.00059161,2]
[340150767,1728687177064,155.0,0.0003201,2]
[340150768,1728687181618,155.0,0.0003201,2]
[340150769,1728687222874,195.978056,0.00026986,2]
[340150770,1728687337684,1000.3,0.00032,2]
[340150771,1728687373494,775.83389468,0.00026574,2]
[340150772,1728687396179,1000.00000001,0.0003198,2]
[340150774,1728687486364,5625.79044578,0.0003201,2]
[340150776,1728687515173,268.72969301,0.00026,2]
[340150787,1728687608515,494.08146701,0.00031125,2]
[340150788,1728687610533,-466.45407335,0.00032681,2]
[340150789,1728687626950,-250.0,0.00032984,2]
[340150794,1728687724980,171.75,0.00032,2]
[340150795,1728687734869,195.978056,0.00026986,2]
[340150796,1728687769862,-629.2163397,0.00032709,2]
[340150798,1728687855700,916.6382142,0.00031888,2]
[340150799,1728687883747,202.5600351,0.00031703,2]
[340150800,1728687884242,438.4648187,0.00031703,2]
[340150801,1728687890399,166.666666,0.00031164,2]
[340150802,1728687913924,286.797229,0.00031614,2]
[340150803,1728687923460,784.24798402,0.00031164,7]
[340150804,1728687955524,200.0,0.00031614,2]
[340150805,1728687957147,-2093.34829049,0.00032744,2]
[340150806,1728687958561,-705.04895021,0.00032744,2]
[340150807,1728688032269,-150.0,0.000329,2]
[340150808,1728688032300,-250.0,0.00033074,2]
[340150809,1728688032328,-250.0,0.00033165,2]
[340150810,1728688032356,-250.0,0.00033255,2]
[340150811,1728688032383,-166.666666,0.00033288,2]
[340150812,1728688032411,-113.22608559,0.00033346,2]
[340150813,1728688039248,-136.77391441,0.00033346,2]
[340150814,1728688039273,-250.0,0.00033436,2]
[340150815,1728688039298,-400.0,0.00033515,2]
[340150816,1728688039324,-400.0,0.00033515,2]
[340150817,1728688039348,-253.0,0.00033516,2]
[340150818,1728688039371,-7617.20931186,0.00033516,2]
[340150819,1728688045716,250.0,0.00031202,2]
[340150820,1728688048111,-2879.33260374,0.00033516,2]
[340150821,1728688053125,-10022.33159652,0.00033516,2]
[340150822,1728688062116,4490.601597,0.00031202,2]
[340150823,1728688062519,4490.601597,0.00031886,2]
[340150824,1728688063654,-4490.601597,0.00032571,2]
[340150825,1728688082571,3000.0,0.00031202,2]
[340150826,1728688088268,5269.35593,0.00031202,2]
[340150827,1728688106189,170.944197,0.00031202,2]
[340150828,1728688106413,170.944197,0.00031217,2]
[340150829,1728688106631,170.944197,0.00031233,2]
[340150830,1728688106886,170.944197,0.00031248,2]
[340150831,1728688107098,170.944197,0.00031264,2]
[340150832,1728688107323,170.944197,0.00031279,2]
[340150833,1728688107532,170.944197,0.00031295,2]
[340150834,1728688107782,170.944197,0.00031311,2]
[340150835,1728688108003,170.944197,0.00031326,2]
[340150836,1728688108233,170.944197,0.00031342,2]
[340150837,1728688108442,170.944197,0.00031357,2]
[340150838,1728688145114,-333.4792435,0.00033516,2]
[340150839,1728688145136,-400.0,0.00033516,2]
[340150840,1728688145159,-400.0,0.00033516,2]
[340150841,1728688145179,-4354.63128517,0.00033517,2]
[340150842,1728688145200,-661.80240519,0.00033517,2]
[340150843,1728688145222,-250.0,0.00033527,2]
[340150844,1728688145245,-2243.61614942,0.00033527,2]
[340150845,1728688145278,413.9973389,0.00031202,2]
[340150846,1728688150163,-22656.38385058,0.00033527,2]
[340150847,1728688150187,-250.0,0.00033617,2]
[340150848,1728688150208,-250.0,0.00033708,2]
[340150849,1728688150229,-250.0,0.00033798,2]
[340150850,1728688150250,-250.0,0.00033888,2]
[340150851,1728688150270,-150.0,0.000339,2]
[340150852,1728688150291,-250.0,0.00033979,2]
[340150853,1728688150312,-250.0,0.00034069,2]
[340150854,1728688150334,-250.0,0.0003416,2]
[340150855,1728688150356,-250.0,0.0003425,2]
[340150856,1728688150377,-250.0,0.00034341,2]
[340150857,1728688150399,-250.0,0.00034431,2]
[340150858,1728688150422,-250.0,0.00034522,2]
[340150859,1728688150444,-250.0,0.00034612,2]
[340150860,1728688150464,-661.80240518,0.00034614,2]
[340150861,1728688150486,-250.0,0.00034703,2]
[340150862,1728688150507,-1000.0,0.00035,2]
[340150863,1728688150529,-302.75782099,0.00035,2]
[340150864,1728688150550,-302.75782099,0.0003535,2]
[340150865,1728688150571,-166.666666,0.00035412,2]
[340150866,1728688150594,-168.608532,0.00035474,2]
[340150867,1728688150738,-168.608532,0.00035494,2]
[340150868,1728688150761,-168.608532,0.00035514,2]
[340150869,1728688150782,-1211.24,0.00035521,3]
[340150870,1728688150804,-686.37,0.00035521,3]
[340150871,1728688150825,-343.18,0.00035521,3]
[340150872,1728688150845,-372.85683419,0.0003553,7]
[340150873,1728688150867,-500.0,0.0003553,7]
[340150874,1728688150888,-500.0,0.0003553,7]
[340150875,1728688150910,-500.0,0.0003553,7]
[340150876,1728688150933,-500.0,0.0003553,7]
[340150877,1728688150956,-500.0,0.0003553,7]
[340150878,1728688150978,-500.0,0.0003553,7]
[340150879,1728688151002,-500.0,0.0003553,7]
[340150880,1728688151023,-500.0,0.0003553,7]
[340150881,1728688151047,-500.0,0.0003553,7]
[340150882,1728688151077,-500.0,0.0003553,7]
[340150883,1728688151100,-500.0,0.0003553,7]
[340150884,1728688151120,-500.0,0.0003553,7]
[340150885,1728688151143,-500.0,0.0003553,7]
[340150886,1728688151166,-518.20144194,0.0003553,7]
[340150887,1728688151187,-500.0,0.0003553,7]
[340150888,1728688151209,-587.52934264,0.0003553,7]
[340150889,1728688151234,-500.0,0.0003553,7]
[340150890,1728688151258,-500.0,0.0003553,7]
[340150891,1728688151280,-500.0,0.0003553,7]
[340150892,1728688151313,-500.0,0.0003553,7]
[340150893,1728688151336,-224.75422911,0.0003553,7]
[340150894,1728688151358,-500.0,0.0003553,7]
[340150895,1728688151378,-500.0,0.0003553,7]
[340150896,1728688151399,-500.0,0.0003553,7]
[340150897,1728688151422,-500.0,0.0003553,7]
[340150898,1728688151444,-159.10151242,0.0003553,7]
[340150899,1728688151466,-500.0,0.0003553,7]
[340150900,1728688151487,-500.0,0.0003553,7]
[340150901,1728688151509,-500.0,0.0003553,7]
[340150902,1728688151531,-500.0,0.0003553,7]
[340150903,1728688151552,-500.0,0.0003553,7]
[340150904,1728688151574,-500.0,0.0003553,7]
[340150905,1728688151598,-500.0,0.0003553,7]
[340150906,1728688151621,-500.0,0.0003553,7]
[340150907,1728688151647,-500.0,0.0003553,7]
[340150908,1728688151669,-500.0,0.0003553,7]
[340150909,1728688151693,-500.0,0.0003553,7]
[340150910,1728688151716,-500.0,0.0003553,7]
[340150911,1728688151743,-500.0,0.0003553,7]
[340150912,1728688151767,-500.0,0.0003553,7]
[340150913,1728688151792,-500.0,0.0003553,7]
[340150914,1728688151819,-500.0,0.0003553,7]
[340150915,1728688151843,-500.0,0.0003553,7]
[340150916,1728688151867,-500.0,0.0003553,7]
[340150917,1728688151893,-500.0,0.0003553,7]
[340150918,1728688151921,-500.0,0.0003553,7]
[340150919,1728688151956,-500.0,0.0003553,7]
[340150920,1728688151984,-500.0,0.0003553,7]
[340150921,1728688152010,-500.0,0.0003553,7]
[340150922,1728688152033,-500.0,0.0003553,7]
[340150923,1728688152056,-500.0,0.0003553,7]
[340150924,1728688152080,-500.0,0.0003553,7]
[340150925,1728688152102,-269.75288174,0.0003553,7]
[340150926,1728688152124,-500.0,0.0003553,7]
[340150927,1728688152147,-500.0,0.0003553,7]
[340150928,1728688152172,-500.0,0.0003553,7]
[340150929,1728688152194,-500.0,0.0003553,7]
[340150930,1728688152216,-500.0,0.0003553,7]
[340150931,1728688152239,-500.0,0.0003553,7]
[340150932,1728688152261,-500.0,0.0003553,7]
[340150933,1728688152283,-500.0,0.0003553,7]
[340150934,1728688152305,-500.0,0.0003553,7]
[340150935,1728688152327,-500.0,0.0003553,7]
[340150936,1728688152349,-500.0,0.0003553,7]
[340150937,1728688152371,-500.0,0.0003553,7]
[340150938,1728688152393,-300.0,0.0003553,7]
[340150939,1728688152415,-168.608532,0.00035533,2]
[340150940,1728688152437,-168.608532,0.00035553,2]
[340150941,1728688152459,-168.608532,0.00035573,2]
[340150942,1728688152483,-168.608532,0.00035592,2]
[340150943,1728688152507,-168.608532,0.00035612,2]
[340150944,1728688152531,-168.608532,0.00035632,2]
[340150945,1728688152554,-168.608532,0.00035651,2]
[340150946,1728688152576,-302.75782099,0.000357,2]
[340150947,1728688152597,-661.80240518,0.00035711,2]
[340150948,1728688152620,-560.0,0.00035992,2]
[340150949,1728688152648,-500.0,0.00036015,5]
[340150950,1728688152670,-500.0,0.00036015,5]
[340150951,1728688152693,-500.0,0.00036044,5]
[340150952,1728688152717,-320.2972837,0.0003605,2]
[340150953,1728688152739,-500.0,0.00036112,2]
[340150954,1728688152763,-253.0,0.00036516,2]
[340150955,1728688152788,-280.49555478,0.00036635,5]
[340150956,1728688152813,-661.80240518,0.00036808,2]
[340150957,1728688152837,-560.0,0.00036868,2]
[340150958,1728688152860,-171.59,0.00036881,3]
[340150959,1728688152883,-2422.48,0.00036891,3]
[340150960,1728688152905,-1372.74,0.00036891,3]
[340150961,1728688152928,-686.36,0.00036891,3]
[340150962,1728688152952,-1000.0,0.00037,7]
[340150963,1728688152974,-185.35221641,0.0003701,2]
[340150964,1728688152997,-500.0,0.0003701,2]
[340150965,1728688153024,-1377.66,0.00037169,10]
[340150966,1728688153048,-1148.05,0.00037169,10]
[340150967,1728688153071,-8129.82092668,0.00037179,5]
[340150968,1728688153164,-44198.24036604,0.00037179,5]
[340150969,1728688153333,-32198.85594708,0.00037179,5]
[340150970,1728688153358,-514.81,0.00037179,3]
[340150971,1728688153380,-30426.16629393,0.000372,103]
[340150972,1728688153402,-395.45659448,0.00037374,15]
[340150973,1728688153424,-432.5022703,0.00037374,15]
[340150974,1728688153447,-169.92982681,0.00037374,15]
[340150975,1728688153472,-387.47897689,0.00037374,15]
[340150976,1728688153497,-42263.4586199,0.00037375,5]
[340150977,1728688153521,-501.51634767,0.00037481,2]
[340150978,1728688153545,-197.496,0.00037524,48]
[340150979,1728688153569,-42263.4586199,0.00037555,5]
[340150980,1728688153590,-661.80240518,0.00037905,2]
[340150981,1728688153612,-343.18,0.00038251,3]
[340150982,1728688153635,-1910.90617573,0.00038356,2]
[340150983,1728688153656,-250.0,0.00038607,2]
[340150984,1728688153678,-783.0,0.00038651,5]
[340150985,1728688153699,-4354.63128517,0.00038665,2]
[340150986,1728688153720,-500.0,0.00039062,5]
[340150987,1728688153741,-294.0,0.00039476,2]
[340150988,1728688153762,-253.0,0.00039516,2]
[340150989,1728688153785,-650.0,0.00039726,15]
[340150990,1728688153806,-1000.0,0.0004,7]
[340150991,1728688153827,-150.112233,0.0004,9]
[340150992,1728688153848,-500.0,0.0004,120]
[340150993,1728688153869,-783.0,0.00040554,30]
[340150994,1728688153890,-1286.88289349,0.000407,2]
[340150995,1728688153911,-3036.94032534,0.00040914,14]
[340150996,1728688153936,-154.96,0.000412,31]
[340150997,1728688153962,-154.96,0.000412,31]
[340150998,1728688153989,-154.96,0.000412,31]
[340150999,1728688154014,-1097.0,0.00041506,5]
[340151000,1728688154035,-168.474249,0.00041653,2]
[340151001,1728688154056,-150.112233,0.00042,6]
[340151002,1728688154079,-30426.16629389,0.0004245,120]
[340151003,1728688154103,-42263.4586199,0.00042467,6]
[340151004,1728688154126,-24187.22095488,0.00042477,6]
[340151005,1728688160447,10000.0,0.000211,30]
[340151007,1728688169100,-500.0,0.0003553,7]
[340151008,1728688169125,-250.0,0.00036434,2]
[340151009,1728688169150,-250.0,0.00036534,2]
[340151010,1728688169174,-250.0,0.00036634,2]
[340151011,1728688169197,-250.0,0.00036734,2]
[340151012,1728688169220,-250.0,0.00036834,2]
[340151013,1728688169245,-250.0,0.00036934,2]
[340151014,1728688169266,-250.0,0.00037034,2]
[340151015,1728688169291,-18076.23766502,0.00042477,6]
[340151016,1728688169312,-1000.0,0.00042497,7]
[340151017,1728688169337,-37552.27209498,0.00042641,6]
[340151018,1728688171106,-250.0,0.00037134,2]
[340151019,1728688171132,-250.0,0.00037234,2]
[340151020,1728688171156,-250.0,0.00037333,2]
[340151021,1728688171179,-250.0,0.00037433,2]
[340151022,1728688171199,-250.0,0.00037533,2]
[340151023,1728688171224,-250.0,0.00037633,2]
[340151024,1728688171248,-250.0,0.00037733,2]
[340151025,1728688171271,-250.0,0.00037833,2]
[340151026,1728688171295,-2299.78324741,0.00042641,6]
[340151060,1728688232274,-250.0,0.00037933,2]
[340151061,1728688232284,-250.0,0.00038033,2]
[340151062,1728688232293,-250.0,0.00038133,2]
[340151063,1728688232302,-250.0,0.00038233,2]
[340151064,1728688232311,-250.0,0.00038333,2]
[340151065,1728688232321,-1637.66789583,0.00042641,6]
[340151081,1728688238662,-773.73538168,0.00042641,6]
[340151082,1728688238672,-228.0,0.00043152,5]
[340151083,1728688238682,-550.0,0.00043153,30]
[340151084,1728688238691,-171.677469,0.00043154,2]
[340151085,1728688238701,-500.0,0.0004355,10]
[340151086,1728688238711,-150.112233,0.00044,10]
[340151087,1728688238722,-400.0,0.00044658,2]
[340151088,1728688238733,-1000.0,0.0004492,10]
[340151089,1728688238746,-150.112233,0.00046,12]
[340151090,1728688238757,-164.0,0.00046849,90]
[340151091,1728688238768,-1500.0,0.00046923,10]
[340151092,1728688238778,-164.0,0.00047,90]
[340151093,1728688238789,-154.96,0.00047,42]
[340151094,1728688238800,-154.96,0.00047,42]
[340151095,1728688238811,-154.96,0.00047,42]
[340151096,1728688238821,-154.96,0.00047,42]
[340151097,1728688238831,-154.96,0.00047,42]
[340151098,1728688238840,-154.96,0.00047,42]
[340151099,1728688238850,-286.797229,0.0004742,2]
[340151100,1728688238860,-770.0,0.00047468,30]
[340151101,1728688238870,-150.112233,0.00048,15]
[340151102,1728688238880,-164.0,0.00048904,90]
[340151103,1728688238894,-345.23832114,0.00049264,10]
[340151104,1728688238906,-400.0,0.00049517,2]
[340151105,1728688238917,-150.112233,0.0005,10]
[340151106,1728688238927,-310.0,0.0005,30]
[340151107,1728688238940,-169.0,0.00051349,120]
[340151108,1728688238950,-30426.16629389,0.00051484,120]
[340151109,1728688238959,-522.83198934,0.00051484,120]
[340151110,1728688238971,-150.112233,0.00052,10]
[340151111,1728688238982,-658.0,0.00052215,120]
[340151112,1728688238994,-600.0,0.000528,2]
[340151113,1728688239006,-154.96,0.000529,51]
[340151114,1728688239017,-154.96,0.000529,51]
[340151115,1728688239026,-154.96,0.000529,51]
[340151116,1728688239036,-154.96,0.000529,51]
[340151117,1728688239048,-154.96,0.000529,51]
[340151118,1728688239058,-154.96,0.000529,51]
[340151119,1728688239070,-500.0,0.00053002,120]
[340151120,1728688239080,-500.0,0.00053002,120]
[340151121,1728688239200,-239.90016805,0.00053002,120]
[340151122,1728688239212,-500.0,0.00053002,120]
[340151123,1728688239221,-500.0,0.00053002,120]
[340151124,1728688239233,-500.0,0.00053002,120]
[340151125,1728688239243,-454.16992696,0.00053002,120]
[340151126,1728688239253,-556.97528817,0.00053002,120]
[340151127,1728688239264,-25570.31305413,0.00053003,120]
[340151128,1728688239276,-150.112233,0.000532,16]
[340151129,1728688239286,-600.0,0.0005335,2]
[340151130,1728688239297,-600.0,0.000539,2]
[340151131,1728688239307,-235.6072033,0.00053973,30]
[340151132,1728688239316,-209.9542747,0.00053973,30]
[340151133,1728688239327,-209.9542747,0.00053973,30]
[340151134,1728688239338,-150.112233,0.00054,11]
[340151135,1728688239348,-233.28006,0.00054,15]
[340151136,1728688239358,-4354.63128517,0.00054107,28]
[340151137,1728688239368,-150.112233,0.000543,16]
[340151138,1728688239378,-400.0,0.00054376,2]
[340151139,1728688239387,-600.0,0.0005445,2]
[340151140,1728688239398,-193.55572777,0.00054573,2]
[340151141,1728688239409,-956.7,0.00054783,10]
[340151142,1728688239420,-797.25,0.00054783,10]
[340151143,1728688239430,-28368.0436,0.00054793,30]
[340151144,1728688239440,-500.0,0.00054794,120]
[340151145,1728688239450,-528.65536785,0.00054794,120]
[340151146,1728688239462,-500.0,0.00054794,120]
[340151147,1728688239472,-500.0,0.00054794,120]
[340151148,1728688239482,-500.0,0.00054794,2]
[340151149,1728688239492,-500.0,0.00054794,120]
[340151150,1728688239501,-500.0,0.00054794,120]
[340151151,1728688239510,-500.0,0.00054794,120]
[340151152,1728688239520,-500.0,0.00054794,120]
[340151153,1728688239529,-500.0,0.00054794,30]
[340151154,1728688239539,-316.32847785,0.00054794,2]
[340151155,1728688239549,-500.0,0.00054794,120]
[340151156,1728688239560,-535.18,0.00054794,120]
[340151157,1728688239570,-500.0,0.00054794,120]
[340151158,1728688239579,-500.0,0.00054794,120]
[340151159,1728688239589,-500.0,0.00054794,120]
[340151160,1728688239598,-500.0,0.00054794,120]
[340151161,1728688239608,-500.0,0.00054794,120]
[340151162,1728688239619,-500.0,0.00054794,120]
[340151163,1728688239628,-500.0,0.00054794,120]
[340151164,1728688239638,-500.0,0.00054794,120]
[340151165,1728688239647,-500.0,0.00054794,7]
[340151166,1728688239657,-500.0,0.00054794,120]
[340151167,1728688239667,-300.0,0.00054794,120]
[340151168,1728688239677,-500.0,0.00054794,120]
[340151169,1728688239687,-500.0,0.00054794,120]
[340151170,1728688239696,-500.0,0.00054794,120]
[340151171,1728688239706,-500.0,0.00054794,120]
[340151172,1728688239715,-500.0,0.00054794,120]
[340151173,1728688239724,-500.0,0.00054794,120]
[340151174,1728688239734,-531.7543553,0.00054794,120]
[340151175,1728688239744,-500.0,0.00054794,120]
[340151176,1728688239753,-573.48,0.00054794,120]
[340151177,1728688239762,-500.0,0.00054794,120]
[340151178,1728688239772,-302.11958062,0.00054794,120]
[340151179,1728688239781,-603.17950864,0.00054794,120]
[340151180,1728688239790,-500.0,0.00054794,120]
[340151181,1728688239800,-10495.17,0.00054794,18]
[340151183,1728688239809,-150.96,0.00054794,2]
[340151185,1728688239819,-153.96,0.00055,2]
[340151186,1728688239828,-200.0,0.00055,120]
[340151187,1728688239837,-166.0,0.00055,120]
[340151188,1728688239847,-153.0,0.00055062,120]
[340151189,1728688239856,-153.0,0.00055062,120]
[340151190,1728688239868,-153.0,0.00055062,120]
[340151193,1728688239878,-153.0,0.00055062,120]
[340151195,1728688239887,-153.0,0.00055062,120]
[340151196,1728688239896,-153.0,0.00055062,120]
[340151197,1728688239906,-153.0,0.00055062,120]
[340151198,1728688239915,-153.0,0.00055062,120]
[340151199,1728688239924,-153.0,0.00055062,120]
[340151200,1728688239934,-153.0,0.00055062,120]
[340151201,1728688239943,-153.0,0.00055062,120]
[340151202,1728688239953,-153.0,0.00055062,120]
[340151203,1728688239962,-143.54752534,0.00055062,120]
[340151209,1728688240393,-9.45247466,0.00055062,120]
[340151210,1728688240404,-153.0,0.00055062,120]
[340151211,1728688240416,-153.0,0.00055062,120]
[340151212,1728688240427,-153.0,0.00055062,120]
[340151213,1728688240437,-153.0,0.00055062,120]
[340151215,1728688240447,-153.0,0.00055062,120]
[340151217,1728688240456,-153.0,0.00055062,120]
[340151219,1728688240465,-153.0,0.00055062,120]
[340151221,1728688240474,-153.0,0.00055062,120]
[340151222,1728688240483,-153.0,0.00055062,120]
[340151223,1728688240494,-153.0,0.00055062,120]
[340151224,1728688240505,-153.0,0.00055062,120]
[340151225,1728688240517,-153.0,0.00055062,120]
[340151226,1728688240526,-153.0,0.00055062,120]
[340151227,1728688240535,-153.0,0.00055062,120]
[340151228,1728688240545,-10495.17,0.00055068,18]
[340151229,1728688240554,-166.0,0.00055068,120]
[340151230,1728688240564,-10495.17,0.00055342,18]
[340151231,1728688240574,-150.112233,0.000554,13]
[340151232,1728688240586,-10495.17,0.00055616,18]
[340151233,1728688240597,-197.496,0.00055643,106]
[340151234,1728688240613,-302.75158921,0.00055889,120]
[340151235,1728688240622,-276.81961613,0.00055889,120]
[340151236,1728688240633,-271.23528383,0.00055889,120]
[340151237,1728688240642,-10495.17,0.0005589,18]
[340151238,1728688240652,-150.112233,0.00056,16]
[340151239,1728688240664,-150.112233,0.00056,14]
[340151240,1728688240674,-3387.86872573,0.00056061,61]
[340151241,1728688240688,-32275.72790921,0.00056061,61]
[340151242,1728688240700,-151.0,0.00056061,120]
[340151243,1728688240710,-198.405478,0.00056061,120]
[340151244,1728688240720,-151.0,0.00056061,120]
[340151245,1728688240731,-10495.17,0.00056164,18]
[340151246,1728688240742,-150.112233,0.000564,14]
[340151247,1728688240753,-10495.17,0.00056438,18]
[340151248,1728688240767,-10495.17,0.00056712,18]
[340151249,1728688240778,-640.93467285,0.000569,2]
[340151250,1728688240791,-150.0,0.0005698,120]
[340151251,1728688240802,-567.566,0.0005698,120]
[340151252,1728688240812,-1219.0,0.0005698,120]
[340151253,1728688240822,-10495.17,0.00056986,18]
[340151254,1728688240833,-500.0,0.00057,12]
[340151255,1728688240845,-500.0,0.00057,15]
[340151256,1728688240857,-150.0,0.00057127,7]
[340151257,1728688240869,-10495.17,0.0005726,18]
[340151258,1728688240878,-150.112233,0.000575,16]
[340151259,1728688240890,-151.0,0.00057534,120]
[340151260,1728688240900,-10495.17,0.00057534,18]
[340151261,1728688240910,-201.0,0.00057534,120]
[340151262,1728688240920,-166.0,0.00057534,120]
[340151263,1728688240929,-250.0,0.00057675,7]
[340151264,1728688240939,-10495.17,0.00057808,18]
[340151265,1728688240948,-151.0,0.00057914,30]
[340151266,1728688240958,-151.0,0.00057914,30]
[340151267,1728688240968,-151.0,0.00057914,30]
[340151268,1728688240978,-151.0,0.00057914,30]
[340151269,1728688240987,-151.0,0.00057914,30]
[340151270,1728688240997,-151.0,0.00057914,30]
[340151271,1728688241008,-168797.18888064,0.00057915,2]
[340151272,1728688241017,-151.0,0.00057915,120]
[340151273,1728688241027,-151.0,0.00057915,120]
[340151274,1728688241036,-151.0,0.00057915,30]
[340151275,1728688241045,-151.0,0.00057915,30]
[340151276,1728688241055,-150.112233,0.00058,13]
[340151277,1728688241064,-10495.17,0.00058082,18]
[340151278,1728688241077,-350.0,0.00058223,7]
[340151279,1728688241086,-10495.17,0.00058356,18]
[340151280,1728688241095,-5800.0,0.000585,90]
[340151281,1728688241106,-150.112233,0.000586,12]
[340151282,1728688241117,-10495.17,0.0005863,18]
[340151283,1728688241127,-164.0,0.00058685,120]
[340151284,1728688241136,-450.0,0.00058771,7]
[340151285,1728688241146,-154.96,0.000588,60]
[340151286,1728688241156,-154.96,0.000588,60]
[340151287,1728688241166,-154.96,0.000588,60]
[340151288,1728688241175,-154.96,0.000588,60]
[340151289,1728688241184,-154.96,0.000588,60]
[340151290,1728688241194,-154.96,0.000588,60]
[340151291,1728688241203,-10495.17,0.00058904,18]
[340151292,1728688241212,-64137.0,0.00059,120]
[340151293,1728688241222,-299.067432,0.00059,120]
[340151294,1728688241232,-299.067432,0.00059,120]